bitfinex-derivatives/quotes_ETHF0:USTF0_20240917
["timestamp","ask_amount","ask_price","bid_price","bid_amount"]
[1726591313440,1.08150488,2369.8,2369.6,0.42194]
[1726591313842,1.08150488,2369.8,2369.7,0.42193]
[1726591314037,1.08150488,2369.8,2369.6,0.42194]
[1726591314636,1.08150488,2369.8,2369.5,3.2078]
[1726591314837,1.08150488,2369.8,2369.5,7.4278]
[1726591315038,1.08150488,2369.8,2369.7,0.42193]
[1726591315239,1.08150488,2369.8,2369.7,4.64193]
[1726591315550,2.71216875,2370.2,2370.1,0.42185]
[1726591315551,1.08150488,2370.2,2370.1,0.42185]
[1726591315849,1.08150488,2370.3,2370.0,3.2078]
[1726591316242,4.28930488,2370.4,2370.2,0.42184]
[1726591316440,4.28930488,2370.4,2370.2,0.42183]
[1726591316650,4.28930488,2370.4,2370.1,0.42185]
[1726591316948,1.08150488,2370.3,2370.0,3.62966]
[1726591317137,4.71111488,2370.4,2370.0,3.62966]
[1726591317339,2.16867857,2370.1,2370.0,3.2078]
[1726591317535,2.71216875,2370.2,2369.9,3.2078]
[1726591317741,2.71216875,2370.2,2369.9,3.62969]
[1726591317742,2.1728007,2370.0,2369.9,3.62969]
[1726591317944,2.1728007,2370.0,2369.9,0.42189]
[1726591318248,2.1728007,2370.0,2369.9,3.62969]
[1726591318739,2.1728007,2370.0,2369.9,3.2078]
[1726591319048,2.1728007,2370.0,2369.9,3.62969]
[1726591319250,3.13402875,2370.1,2369.9,3.2078]
[1726591319447,2.71216875,2370.0,2369.8,0.4219]
[1726591319748,2.1718164,2369.9,2369.8,0.4219]
[1726591319942,2.1718164,2369.9,2369.8,3.6297]
[1726591320140,2.1718164,2370.0,2369.5,7.3868]
[1726591320339,1.62877575,2369.7,2369.6,0.42194]
[1726591320745,2.1718164,2369.7,2369.6,4.64194]
[1726591321145,2.71216875,2369.9,2369.7,0.42193]
[1726591321146,2.1718164,2369.8,2369.7,0.42193]
[1726591321547,2.71216875,2369.9,2369.7,0.42193]
[1726591321850,2.17110009,2369.8,2369.7,0.42193]
[1726591323671,2.71216875,2369.9,2369.7,0.42193]
[1726591323672,2.17110009,2369.9,2369.8,0.42191]
[1726591323856,1.08553168,2369.9,2369.8,15.53736]
[1726591324057,1.08553168,2370.0,2369.9,1.47662]
[1726591324356,1.08582368,2370.7,2370.4,0.42179]
[1726591324670,0.42175,2370.7,2370.4,3.62959]
[1726591324852,1.08582368,2370.7,2370.1,3.2078]
[1726591325048,1.08582368,2370.6,2370.1,3.2078]
[1726591325247,0.42177,2370.6,2370.2,0.42184]
[1726591325445,0.42177,2370.6,2370.3,0.42182]
[1726591325652,1.50757368,2370.7,2370.3,0.42182]
[1726591325847,1.08582368,2370.7,2370.3,0.42182]
[1726591326048,1.62825526,2370.8,2370.4,3.2078]
[1726591326049,1.08582368,2370.8,2370.4,3.2078]
[1726591326255,1.08582368,2370.9,2370.6,3.2078]
[1726591326454,1.62825526,2371.0,2370.6,3.2078]
[1726591326455,1.50753368,2371.0,2370.6,3.62956]
[1726591326855,0.42171,2370.9,2370.3,3.2078]
[1726591327047,0.42174,2370.8,2370.3,3.2078]
[1726591327249,1.08582368,2370.9,2370.4,0.42179]
[1726591327556,0.42173,2370.8,2370.5,0.42177]
[1726591327748,0.42173,2370.8,2370.0,4.26247]
[1726591327749,0.42173,2370.8,2370.4,0.42179]
[1726591327954,1.50755368,2370.8,2370.4,0.42179]
[1726591328353,1.50755368,2370.8,2370.5,0.42178]
[1726591328554,0.42175,2370.7,2370.4,0.42179]
[1726591328758,0.42176,2370.7,2370.4,0.42179]
[1726591328954,4.29362368,2370.9,2370.3,3.2078]
[1726591329160,1.08582368,2370.7,2369.9,7.3868]
[1726591329356,4.29362368,2370.7,2369.9,3.2078]
[1726591329552,1.50759368,2370.6,2369.9,3.2078]
[1726591329757,0.4218,2370.5,2369.9,3.2078]
[1726591329958,0.4218,2370.5,2370.1,0.42184]
[1726591330153,0.42178,2370.6,2370.2,0.42183]
[1726591330359,0.42178,2370.5,2369.9,3.2078]
[1726591330657,0.42178,2370.5,2370.1,0.42184]
[1726591330861,0.42177,2370.6,2370.2,0.42183]
[1726591331056,0.42179,2370.5,2370.2,0.42183]
[1726591331251,4.71538368,2370.7,2370.2,3.2078]
[1726591331463,1.50758368,2370.7,2370.3,0.42182]
[1726591331859,0.42177,2370.6,2370.2,3.62963]
[1726591332163,0.42179,2370.5,2370.2,3.62963]
[1726591332355,2.71216875,2370.3,2370.2,3.62963]
[1726591333554,2.71216875,2370.3,2369.8,7.2578]
[1726591333759,1.08413682,2369.9,2369.8,7.67971]
[1726591334055,1.08413682,2369.9,2369.8,11.89971]
[1726591335259,1.08413682,2369.9,2369.8,7.84971]
[1726591336860,1.62620523,2369.9,2369.8,3.62971]
[1726591337063,2.16827364,2370.0,2369.8,3.2078]
[1726591337256,2.16827364,2369.9,2369.8,3.62971]
[1726591337455,2.16827364,2369.9,2369.8,3.2078]
[1726591337761,2.16827364,2369.9,2369.7,0.42192]
[1726591337762,2.71216875,2369.9,2369.7,0.42192]
[1726591337957,2.16828932,2369.8,2369.7,0.42192]
[1726591338157,2.16828932,2369.8,2369.6,0.42194]
[1726591338563,2.16828932,2369.7,2369.6,0.42194]
[1726591339063,2.16828932,2369.8,2369.7,0.42193]
[1726591339262,2.71216875,2369.9,2369.8,0.42191]
[1726591339463,1.08467222,2370.4,2369.8,7.2578]
[1726591339662,0.4218,2370.4,2370.2,3.2078]
[1726591339967,1.50646222,2370.5,2370.2,3.2078]
[1726591340169,1.08467222,2370.6,2370.2,3.2078]
[1726591340474,0.42178,2370.6,2370.2,3.62962]
[1726591340662,0.42177,2370.6,2369.9,3.53989261]
[1726591340962,1.08467222,2370.6,2370.2,3.2078]
[1726591341169,1.08467222,2370.6,2370.4,0.4218]
[1726591341366,0.42176,2370.7,2370.4,0.4218]
[1726591341367,1.50642222,2370.7,2370.4,0.4218]
[1726591341667,1.08467222,2370.6,2370.4,0.4218]
[1726591341864,1.50642222,2370.7,2370.4,0.4218]
[1726591342166,1.08467222,2370.6,2370.4,0.4218]
[1726591342864,1.08467222,2370.5,2370.0,4.26247]
[1726591343061,1.50644222,2370.6,2370.0,4.26247]
[1726591343264,1.50644222,2370.6,2370.4,0.42179]
[1726591343265,1.08467222,2370.5,2370.4,0.42179]
[1726591343863,1.08467222,2370.6,2370.5,0.42178]
[1726591344366,1.08731809,2370.6,2370.3,3.2078]
[1726591344556,1.08731809,2370.6,2370.5,0.42178]
[1726591345565,1.62700833,2370.6,2370.4,0.4218]
[1726591345759,1.62700833,2370.6,2370.5,0.42178]
[1726591347567,2.16934444,2370.6,2370.5,0.42178]
[1726591347757,2.16934444,2370.7,2370.6,0.42177]
[1726591347962,2.16934444,2370.7,2370.6,3.62957]
[1726591348165,2.16934444,2370.7,2370.6,7.84797]
[1726591348463,2.17890357,2370.8,2370.6,7.4262]
[1726591348769,1.63414039,2370.7,2370.6,7.84797]
[1726591349864,2.17890357,2370.8,2370.7,0.42175]
[1726591350769,2.17890357,2370.8,2370.6,3.2078]
[1726591350963,2.71216875,2370.8,2370.3,3.2078]
[1726591351168,1.63402461,2370.4,2370.3,3.6296]
[1726591351363,2.17869948,2370.4,2370.3,3.62962]
[1726591351566,1.05435,2370.8,2370.2,0.42183]
[1726591351567,3.13396875,2370.5,2370.2,0.42183]
[1726591351863,2.17926216,2370.3,2370.2,3.62964]
[1726591352071,2.17926216,2370.4,2370.3,0.42182]
[1726591352370,2.71216875,2370.5,2370.3,0.42182]
[1726591352568,3.13395875,2370.5,2370.2,3.2078]
[1726591352765,2.17940064,2370.3,2370.2,3.62964]
[1726591353169,2.71216875,2370.5,2370.4,0.4218]
[1726591353366,2.71216875,2370.6,2370.5,0.42178]
[1726591353684,2.71216875,2370.8,2370.7,0.42175]
[1726591353877,2.71216875,2370.9,2370.8,0.42173]
[1726591354065,2.71216875,2371.0,2370.9,0.42171]
[1726591354370,2.72465682,2371.1,2371.0,0.42168]
[1726591355075,3.25532703,2371.4,2371.0,0.42168]
[1726591355076,2.72465682,2371.2,2371.0,0.42168]
[1726591355272,2.17995081,2371.1,2370.9,0.4217]
[1726591355474,1.63468702,2371.0,2370.9,0.42171]
[1726591355662,1.63470468,2371.0,2370.9,0.42171]
[1726591356271,2.17995081,2371.1,2370.8,0.42171]
[1726591356476,1.6345657,2370.9,2370.7,3.62954]
[1726591356773,1.08972777,2370.8,2370.7,3.62954]
[1726591357168,1.08972777,2370.8,2370.7,7.84794]
[1726591357474,1.6345657,2370.8,2370.7,3.62954]
[1726591357770,1.6345657,2370.8,2370.7,3.62955]
[1726591357976,1.6345657,2370.8,2370.7,7.84795]
[1726591359073,1.08992018,2370.8,2370.7,7.84795]
[1726591359372,1.6345657,2370.8,2370.7,7.84795]
[1726591359572,1.6345657,2370.8,2370.7,7.4262]
[1726591359774,1.6345657,2370.8,2370.7,7.84795]
[1726591360166,2.17995081,2370.9,2370.7,7.84795]
[1726591360364,2.17995081,2370.9,2370.8,0.42173]
[1726591361373,2.17995081,2370.9,2370.6,0.42176]
[1726591361374,0.42172,2370.9,2370.6,0.42176]
[1726591361673,1.63549321,2370.7,2370.5,0.42178]
[1726591361975,2.18065761,2370.7,2370.6,0.42177]
[1726591362280,2.18065761,2370.7,2370.5,0.42177]
[1726591362475,2.18065761,2370.6,2370.5,0.42177]
[1726591362980,2.1805711,2370.7,2370.6,0.42177]
[1726591363367,2.6023211,2370.7,2370.5,0.42177]
[1726591363572,2.18066235,2370.6,2370.5,0.42177]
[1726591363779,2.60241235,2370.7,2370.5,0.42177]
[1726591363973,2.18066235,2370.7,2370.5,0.42178]
[1726591364173,2.18066235,2370.6,2370.5,0.42178]
[1726591364474,2.18066235,2370.6,2370.4,3.2078]
[1726591364674,2.18066235,2370.6,2370.4,3.6296]
[1726591364675,1.63555687,2370.5,2370.4,3.6296]
[1726591364879,1.63555687,2370.5,2370.4,3.2078]
[1726591365084,2.60243235,2370.6,2370.4,3.2078]
[1726591365284,2.18066235,2370.6,2370.4,3.2078]
[1726591365485,2.18066235,2370.6,2370.4,3.62959]
[1726591365987,2.18066235,2370.6,2370.5,0.42178]
[1726591366283,2.18066235,2370.6,2370.4,3.62959]
[1726591366484,2.18066235,2370.5,2370.4,3.62959]
[1726591366677,2.18066235,2370.5,2370.4,0.42179]
[1726591366980,0.42181,2370.4,2370.1,3.2078]
[1726591367281,0.42181,2370.4,2370.1,3.62965]
[1726591367282,1.63573887,2370.2,2370.1,3.62965]
[1726591367476,1.63573887,2370.2,2370.1,4.2642426]
[1726591367778,1.63573887,2370.2,2370.1,3.62965]
[1726591368584,1.63573887,2370.2,2370.1,6.91965]
[1726591369082,1.09094732,2370.3,2370.2,1.47644]
[1726591369291,1.09094732,2370.4,2370.3,2.53094]
[1726591369583,1.09094732,2370.4,2370.3,10.67393378]
[1726591370178,1.09094732,2370.4,2370.3,16.67393378]
[1726591370876,1.09094732,2370.4,2370.3,17.68920014]
[1726591371178,1.63573887,2370.5,2370.4,1.47631]
[1726591371179,1.09094732,2370.5,2370.4,1.47631]
[1726591371375,1.09094732,2370.5,2370.4,9.11530378]
[1726591371376,1.09122718,2370.5,2370.4,9.11530378]
[1726591371585,1.09122718,2370.5,2370.4,15.53710378]
[1726591372079,1.63573887,2370.5,2370.4,15.53710378]
[1726591372272,1.63573887,2370.6,2370.4,16.59161378]
[1726591372477,1.63573887,2370.6,2370.5,9.19746378]
[1726591372679,1.63686176,2370.7,2370.6,1.47619]
[1726591372887,2.18066235,2370.8,2370.7,0.42175]
[1726591373085,2.18066235,2370.8,2370.7,7.12854521]
[1726591373277,2.18066235,2370.8,2370.7,11.34694521]
[1726591373585,2.18066235,2370.8,2370.7,11.13795]
[1726591373979,2.18066235,2370.8,2370.7,3.62955]
[1726591374278,2.72465682,2370.8,2370.7,3.62955]
[1726591374482,2.72465682,2370.8,2370.6,3.71175]
[1726591374782,2.72465682,2370.8,2370.7,3.62955]
[1726591375478,2.72465682,2370.8,2370.7,6.91955]
[1726591375679,2.72465682,2370.9,2370.7,10.7162]
[1726591375880,2.18214776,2370.8,2370.7,6.91955]
[1726591376280,2.18214776,2370.8,2370.7,11.13795]
[1726591376783,2.18214776,2370.8,2370.7,6.91955]
[1726591377386,2.72465682,2371.0,2370.8,0.42173]
[1726591377593,2.18198264,2370.9,2370.8,0.42173]
[1726591380085,2.18198264,2371.0,2370.9,0.42171]
[1726591380483,2.72465682,2371.1,2370.9,0.42171]
[1726591380883,3.14633682,2371.1,2370.9,0.42171]
[1726591381182,4.30944703,2371.3,2370.9,0.42171]
[1726591381183,2.72465682,2371.0,2370.9,0.42171]
[1726591381385,0.42167,2371.2,2371.0,0.42169]
[1726591381688,3.14944699,2371.1,2370.9,3.71171]
[1726591382091,3.14944699,2371.1,2370.9,3.29]
[1726591382391,2.72776699,2371.1,2370.9,3.71171]
[1726591382595,3.14944699,2371.1,2370.9,3.71171]
[1726591383388,2.72776699,2371.0,2370.7,6.4978]
[1726591383587,2.18277266,2370.9,2370.8,0.42171]
[1726591383995,4.91053965,2371.0,2370.9,0.42171]
[1726591384293,2.18277266,2371.2,2371.1,0.42168]
[1726591384498,3.25532703,2371.2,2371.1,6.4978]
[1726591384796,3.8381372,2371.4,2371.1,6.91947]
[1726591384998,3.27562862,2371.2,2371.1,6.91947]
[1726591385195,3.27562862,2371.3,2371.2,0.42166]
[1726591385396,3.27562862,2371.5,2371.4,0.42162]
[1726591385592,3.27562862,2371.5,2371.4,6.91942]
[1726591386195,3.27562862,2371.6,2371.5,0.42161]
[1726591386699,3.8381372,2371.7,2371.6,0.42159]
[1726591386700,3.27562862,2371.7,2371.6,0.42159]
[1726591386904,3.27562862,2371.8,2371.7,0.42157]
[1726591387199,3.27562862,2371.8,2371.7,3.2078]
[1726591387200,3.27536552,2371.8,2371.7,3.2078]
[1726591387801,3.27536552,2371.8,2371.5,0.4216]
[1726591387802,3.8381372,2371.8,2371.5,0.4216]
[1726591388101,3.27380554,2371.6,2371.4,3.2078]
[1726591388398,3.27380554,2371.6,2371.4,6.91941]
[1726591388697,3.27380554,2371.7,2371.6,0.42159]
[1726591388902,3.27380554,2371.8,2371.7,0.42157]
[1726591389298,3.27380554,2371.9,2371.8,0.42155]
[1726591389503,3.27242102,2371.9,2371.8,3.71155]
[1726591389704,3.27242102,2372.0,2371.9,0.42153]
[1726591390399,4.40046987,2372.3,2372.0,0.42152]
[1726591390400,3.27242102,2372.1,2372.0,0.42152]
[1726591390707,4.40046987,2372.4,2372.0,0.42152]
[1726591390708,3.27242102,2372.2,2372.1,0.4215]
[1726591391004,3.27242102,2372.2,2372.0,6.91931]
[1726591391208,3.27242102,2372.2,2372.0,3.71151]
[1726591391809,3.27242102,2372.2,2372.0,3.29]
[1726591392109,3.27242102,2372.2,2372.0,3.71151]
[1726591392404,3.27242102,2372.2,2371.8,3.29]
[1726591392405,3.69391102,2372.2,2371.8,3.29]
[1726591392608,2.72400174,2372.1,2371.9,0.42152]
[1726591392905,2.72400174,2372.0,2371.9,0.42152]
[1726591393099,3.69389102,2372.3,2372.0,0.42152]
[1726591393100,2.72400174,2372.1,2372.0,0.42152]
[1726591394109,4.216,2372.1,2371.7,3.2078]
[1726591394298,2.17811846,2371.8,2371.7,3.2078]
[1726591394609,3.27242102,2372.0,2371.4,3.29]
[1726591394813,2.17766471,2371.6,2371.4,3.71162]
[1726591395005,2.17766471,2371.5,2371.3,3.29]
[1726591395202,2.72208089,2371.4,2371.1,3.2078]
[1726591395506,2.72177229,2371.3,2371.2,0.42165]
[1726591395701,2.17728189,2371.2,2371.1,6.4978]
[1726591395907,2.72177229,2371.3,2370.9,0.65897689]
[1726591395908,10.14717229,2371.3,2370.9,0.65897689]
[1726591396217,3.1432033,2371.0,2370.9,0.65897689]
[1726591396512,2.7215133,2371.0,2370.9,0.65897689]
[1726591396711,6.9391133,2371.0,2370.9,0.65897689]
[1726591397005,7.3608033,2371.0,2370.9,0.65897689]
[1726591397310,10.63929,2371.0,2370.9,0.65897689]
[1726591397608,10.2176,2371.0,2370.9,0.65897689]
[1726591397810,2.7219791,2371.0,2370.9,0.65897689]
[1726591398011,2.7219791,2371.0,2370.9,1.08068689]
[1726591398315,2.7219791,2371.2,2371.1,0.42168]
[1726591398607,2.7219791,2371.3,2371.1,3.71168]
[1726591398805,2.17770066,2371.2,2371.1,3.71168]
[1726591399004,2.7219791,2371.3,2371.2,0.42166]
[1726591399405,2.7219791,2371.3,2371.1,3.29]
[1726591399406,2.17811802,2371.3,2371.1,3.29]
[1726591399707,3.27242102,2371.4,2371.1,3.29]
[1726591400019,3.27242102,2371.4,2371.3,3.2078]
[1726591400208,3.27242102,2371.4,2371.3,3.62944]
[1726591400405,3.27242102,2371.5,2371.3,6.91944]
[1726591400715,3.27242102,2371.5,2371.4,0.42162]
[1726591401009,3.27242102,2371.5,2371.3,6.91943]
[1726591401309,3.27242102,2371.5,2371.3,6.4978]
[1726591401611,3.27242102,2371.5,2371.3,3.2078]
[1726591401814,3.27242102,2371.5,2371.3,6.4978]
[1726591402213,3.69403102,2371.5,2371.1,3.29]
[1726591402518,2.72304444,2371.2,2371.1,3.71167]
[1726591402815,2.72285998,2371.2,2371.1,3.29]
[1726591403005,3.69405102,2371.4,2371.1,7.5076]
[1726591403205,3.69405102,2371.4,2371.1,3.29]
[1726591403411,3.27242102,2371.3,2371.1,3.29]
[1726591403605,4.32654102,2371.3,2370.7,3.2078]
[1726591403811,3.14421598,2370.8,2370.7,3.2078]
[1726591404110,3.14421598,2370.8,2370.4,0.42179]
[1726591404111,0.42175,2370.7,2370.4,0.42179]
[1726591404409,2.72208014,2370.5,2370.4,3.71179]
[1726591404717,2.72208014,2370.5,2370.4,0.42179]
[1726591404907,2.72204203,2370.5,2370.4,0.42179]
[1726591405111,0.42177,2370.6,2370.3,0.42181]
[1726591405319,3.27242102,2370.7,2370.2,3.2078]
[1726591405320,3.27242102,2370.5,2370.2,3.2078]
[1726591405610,3.69421102,2370.5,2370.2,0.42183]
[1726591405809,3.27242102,2370.4,2370.2,0.42183]
[1726591406018,3.27242102,2370.5,2370.3,0.42182]
[1726591406207,3.27242102,2370.5,2370.4,0.4218]
[1726591406406,3.27242102,2370.7,2370.4,4.2184]
[1726591406607,2.72142813,2370.5,2370.4,0.42179]
[1726591407217,2.72144067,2370.5,2370.4,0.42179]
[1726591407720,1.08852081,2370.7,2370.5,0.42178]
[1726591407919,1.08852081,2370.7,2370.5,3.62958]
[1726591408213,1.08852081,2370.7,2370.6,0.42177]
[1726591408415,1.08852081,2370.7,2370.6,4.64017]
[1726591408713,1.08856641,2371.1,2370.6,10.2184]
[1726591408913,1.08856641,2371.1,2370.9,3.2078]
[1726591409117,1.08856641,2371.1,2370.9,7.4254]
[1726591409415,1.08856641,2371.1,2370.9,3.2078]
[1726591409615,1.08856641,2371.1,2370.9,3.6295]
[1726591409813,1.08856641,2371.1,2371.0,0.42169]
[1726591410012,1.08856641,2371.1,2370.6,3.2078]
[1726591410222,1.0887994,2371.0,2370.8,0.42172]
[1726591410415,1.0887994,2371.0,2370.7,0.42174]
[1726591410610,1.0887994,2371.0,2370.6,3.2078]
[1726591410611,1.0887994,2370.9,2370.6,3.2078]
[1726591410914,1.0887994,2370.8,2370.6,3.2078]
[1726591411408,1.0887994,2370.8,2370.6,3.62957]
[1726591411610,1.0887994,2370.8,2370.7,0.42175]
[1726591411909,1.0887994,2370.9,2370.7,0.42174]
[1726591412318,1.0887994,2370.9,2370.8,0.42173]
[1726591412620,1.63284962,2371.0,2370.9,0.42171]
[1726591412621,1.0887994,2371.0,2370.9,0.42171]
[1726591412817,1.0887994,2371.1,2371.0,0.42169]
[1726591413613,2.72164902,2371.3,2371.0,4.2176]
[1726591413912,1.0887994,2371.3,2371.2,3.62946]
[1726591414726,3.26570698,2371.5,2371.2,7.84626]
[1726591414922,3.26570698,2371.5,2371.2,3.62946]
[1726591416211,3.26570698,2371.4,2371.2,3.62946]
[1726591416416,0.42164,2371.3,2371.2,3.2078]
[1726591416616,0.42168,2371.1,2370.9,3.2078]
[1726591417225,3.26570698,2371.2,2370.9,3.2078]
[1726591417417,0.42169,2371.0,2370.9,3.2078]
[1726591418214,3.26570698,2371.0,2370.9,3.2078]
[1726591418422,3.26570698,2371.0,2370.9,3.62951]
[1726591418614,3.80999148,2371.2,2370.9,3.62951]
[1726591418615,3.26570698,2371.1,2370.9,3.2078]
[1726591419016,3.26570698,2371.1,2371.0,0.42169]
[1726591419321,3.26570698,2371.2,2371.0,0.42169]
[1726591419821,3.26570698,2371.2,2371.1,0.42168]
[1726591420022,3.26570698,2371.3,2371.1,0.42168]
[1726591420322,3.26570698,2371.3,2371.2,3.2078]
[1726591421114,3.26570698,2371.4,2371.3,0.42164]
[1726591421318,3.26570698,2371.4,2371.2,3.2078]
[1726591421621,3.26570698,2371.4,2371.1,0.42167]
[1726591421819,3.26570698,2371.3,2371.1,0.42167]
[1726591422516,3.26570698,2371.3,2371.2,3.2078]
[1726591422720,2.17944328,2371.3,2371.2,3.2078]
[1726591422920,2.17944328,2371.3,2371.2,3.62946]
[1726591423119,2.17944328,2371.3,2371.2,3.2078]
[1726591423720,2.17944328,2371.4,2371.2,3.62946]
[1726591423919,2.17944328,2371.4,2371.3,0.42164]
[1726591424530,2.17944328,2371.4,2371.2,3.2078]
[1726591424726,2.17944328,2371.4,2370.9,3.2078]
[1726591425021,1.08974539,2371.0,2370.9,3.2078]
[1726591425220,1.08974539,2371.0,2370.9,7.67951]
[1726591425529,1.63460651,2371.1,2371.0,0.42169]
[1726591426325,1.63460651,2371.1,2370.9,3.6295]
[1726591426722,1.63460651,2371.1,2370.9,3.62951]
[1726591426723,1.08972523,2371.0,2370.9,3.62951]
[1726591427324,1.08972523,2371.1,2371.0,0.42169]
[1726591427625,1.63460651,2371.2,2371.0,0.42169]
[1726591427819,1.63460651,2371.2,2370.9,7.2578]
[1726591427820,1.08920541,2371.2,2371.1,5.69348]
[1726591428022,1.08920541,2371.3,2371.2,0.42166]
[1726591428222,1.08920541,2371.5,2371.2,12.52956]
[1726591428425,1.63460651,2371.5,2371.4,0.42162]
[1726591428624,1.08937361,2371.5,2371.4,0.42162]
[1726591428931,1.63460651,2371.6,2371.3,1.0541]
[1726591429135,1.08940024,2371.8,2371.5,7.67941]
[1726591429324,2.7243041,2372.1,2372.0,0.42152]
[1726591429325,1.08940024,2372.1,2372.0,0.42152]
[1726591429522,1.08940024,2372.1,2372.0,7.84532]
[1726591429523,1.08968349,2372.1,2372.0,7.84532]
[1726591429721,1.08968349,2372.2,2372.0,7.4238]
[1726591429924,1.08968349,2372.1,2372.0,3.2078]
[1726591430121,1.08968349,2372.3,2372.1,0.4215]
[1726591431331,1.08968349,2372.3,2372.0,3.62931]
[1726591431522,1.08968349,2372.3,2372.1,4.05]
[1726591431523,1.08968349,2372.2,2372.1,4.05]
[1726591431722,1.08968349,2372.4,2372.1,4.05]
[1726591431928,1.08968349,2372.4,2372.3,3.62926]
[1726591432125,1.08968349,2372.5,2372.4,0.42145]
[1726591432426,1.08968349,2372.5,2372.3,0.42145]
[1726591432427,1.08855765,2372.5,2372.3,0.42145]
[1726591432633,1.08846019,2372.4,2372.3,3.62926]
[1726591432828,1.08846019,2372.4,2372.2,0.42147]
[1726591433029,1.08846019,2372.4,2372.0,3.62931]
[1726591433222,1.08846019,2372.2,2372.0,3.2078]
[1726591434535,1.08846019,2372.2,2372.0,3.62931]
[1726591436125,1.08846019,2372.2,2372.1,0.4215]
[1726591436322,1.08846019,2372.5,2372.2,0.42148]
[1726591436525,2.7230667,2372.3,2371.9,3.2078]
[1726591436730,1.08781041,2372.1,2371.9,3.2078]
[1726591436933,1.08781041,2372.1,2371.9,3.62933]
[1726591437533,1.08781041,2372.1,2371.9,3.2078]
[1726591437731,3.26570698,2372.1,2371.9,3.2078]
[1726591438031,3.26570698,2372.0,2371.8,0.42155]
[1726591438634,3.26570698,2372.0,2371.9,3.2078]
[1726591438827,3.26570698,2372.0,2371.9,3.62933]
[1726591439035,3.26570698,2372.1,2372.0,0.42152]
[1726591439331,3.26570698,2372.1,2371.9,3.62933]
[1726591439526,3.26570698,2372.1,2371.8,0.42154]
[1726591439730,3.26570698,2372.1,2371.7,4.60056]
[1726591439927,3.26570698,2372.0,2371.8,0.42155]
[1726591440332,3.26570698,2372.0,2371.7,4.179]
[1726591440529,3.26570698,2372.0,2371.8,0.42155]
[1726591440728,3.26570698,2372.0,2371.7,4.179]
[1726591440928,3.80999148,2372.1,2371.7,4.179]
[1726591440929,3.26287359,2371.8,2371.7,4.179]
[1726591441831,3.26287359,2371.9,2371.7,4.179]
[1726591442035,3.66667359,2371.9,2371.6,3.62938]
[1726591442235,3.66667359,2371.9,2371.7,0.4026]
[1726591442625,3.66667359,2371.9,2371.6,3.2078]
[1726591442838,3.26287359,2371.8,2371.6,4.03199]
[1726591443028,3.66667359,2371.9,2371.6,4.03199]
[1726591443232,2.71905608,2371.7,2371.6,4.03199]
[1726591444039,2.71905608,2371.8,2371.7,0.42157]
[1726591444239,3.12185608,2371.9,2371.8,0.42155]
[1726591444437,0.4028,2371.9,2371.8,0.42155]
[1726591445039,1.08773393,2372.1,2372.0,0.42152]
[1726591445239,0.4038,2372.2,2372.1,0.4215]
[1726591445637,0.8277,2372.3,2372.2,0.42148]
[1726591445836,1.08773393,2372.4,2372.3,0.42146]
[1726591446137,1.2455,2372.5,2372.4,0.42145]
[1726591447544,0.8206,2372.5,2372.4,0.42145]
[1726591447734,1.93043393,2372.8,2372.7,0.42139]
[1726591447934,1.93043393,2372.8,2372.7,3.62919]
[1726591447935,0.4178,2372.8,2372.7,3.62919]
[1726591448137,1.50183393,2373.0,2372.8,0.42137]
[1726591448138,0.4141,2373.0,2372.8,0.42137]
[1726591448444,0.4141,2373.0,2372.7,3.62918]
[1726591448749,0.4085,2372.9,2372.7,3.62918]
[1726591448937,0.4085,2372.9,2372.8,3.2078]
[1726591450043,3.80573106,2373.4,2373.0,1.4747]
[1726591450244,12.38947008,2374.1,2373.3,7.67907]
[1726591450245,2.0575009,2373.8,2373.3,7.67907]
[1726591450541,0.4259,2373.8,2373.3,3.2078]
[1726591450744,2.0575009,2373.8,2373.3,3.2078]
[1726591450944,5.2653009,2373.8,2373.3,3.2078]
[1726591451138,3.1105209,2373.8,2373.3,3.2078]
[1726591451537,0.42122,2373.7,2373.3,3.2078]
[1726591451745,2.0575009,2373.8,2373.3,3.2078]
[1726591451746,0.42125,2373.6,2373.3,3.2078]
[1726591451943,0.42125,2373.6,2373.2,0.4213]
[1726591452147,0.4266,2373.5,2372.9,3.2078]
[1726591452444,0.42129,2373.3,2372.9,3.62915]
[1726591452748,0.4259,2373.2,2372.9,3.2078]
[1726591452944,0.42132,2373.1,2372.7,0.42138]
[1726591453247,0.4259,2373.2,2372.6,3.2078]
[1726591453451,0.4266,2373.0,2372.6,3.2078]
[1726591453740,0.4266,2373.0,2372.9,0.42136]
[1726591453943,4.641,2373.0,2372.9,0.42136]
[1726591454152,4.641,2373.0,2372.6,3.6292]
[1726591454153,10.641,2373.0,2372.6,3.6292]
[1726591454444,0.42136,2372.9,2372.6,3.2078]
[1726591454746,3.1115709,2373.0,2372.4,0.4099]
[1726591454954,0.42138,2372.8,2372.6,0.4214]
[1726591455145,0.42137,2372.9,2372.7,0.42139]
[1726591455341,0.42138,2372.8,2372.4,0.4099]
[1726591455541,0.42138,2372.8,2372.5,0.42142]
[1726591455743,3.2078,2372.8,2372.3,3.2078]
[1726591455943,0.4214,2372.7,2372.4,0.42145]
[1726591456137,0.42143,2372.5,2372.3,3.2078]
[1726591456536,0.802,2372.6,2372.3,3.2078]
[1726591456537,4.63665,2372.4,2372.3,3.2078]
[1726591456742,7.423,2372.5,2372.1,0.42149]
[1726591456944,4.8394009,2372.5,2371.9,0.42153]
[1726591457249,0.42147,2372.3,2371.9,0.42153]
[1726591457551,2.0530709,2372.3,2371.8,0.417]
[1726591457743,0.4161,2372.2,2371.9,0.42153]
[1726591458046,0.83758,2372.2,2371.9,0.42153]
[1726591458252,0.4161,2372.2,2371.9,0.42153]
[1726591458648,0.83759,2372.2,2371.9,0.42153]
[1726591459050,0.83759,2372.2,2371.8,0.83854]
[1726591459248,0.83759,2372.2,2371.9,0.42153]
[1726591459741,0.42154,2371.9,2371.7,3.2078]
[1726591459950,0.8426,2371.8,2371.7,3.2078]
[1726591460147,0.8426,2371.8,2371.7,3.62937]
[1726591461150,1.6292993,2372.2,2371.9,1.05384]
[1726591461357,0.4257,2372.5,2372.1,7.2578]
[1726591461549,0.4257,2372.5,2372.4,3.2078]